[Event "European Union U14-ch 2024"]
[Site "Roznov pod Radhostem"]
[Date "2024.08.11"]
[Round "7.4"]
[White "Michalska, Lena"]
[Black "Bartova, Hana"]
[Result "0-1"]
[ECO "A15"]
[WhiteElo "1837"]
[BlackElo "1796"]
[Annotator "NA RC"]
[PlyCount "128"]
[EventDate "2024.08.02"]
[EventType "swiss"]
[EventCountry "CZE"]
[SourceTitle "playchess.com"]
[Source "ChessBase"]
[SourceQuality "1"]
[TimeControl "5400+30"]

1. c4 {[%emt 0:00:01]} Nf6 {[%emt 0:00:12]} 2. g3 {[%emt 0:00:05]} e6 {[%emt 0:00:58]} 3. Bg2 {[%emt 0:00:06]} d5 {[%emt 0:00:25]} 4. cxd5 {[%emt 0:00:23]} exd5 {[%emt 0:01:08]} 5. Nf3 {[%emt 0:00:07]} Bd6 {[%emt 0:00:55]} 6. O-O {[%emt 0:00:51]} O-O {[%emt 0:00:34]} 7. Nc3 {[%emt 0:01:46]} c6 {[%emt 0:00:36]} 8. a3 {[%emt 0:02:08]} a5 {[%emt 0:02:30]} 9. d3 {[%emt 0:04:09]} h6 {[%emt 0:10:44]} 10. Qc2 {[%emt 0:02:41]} Re8 {[%emt 0:06:41]} 11. Re1 {[%emt 0:06:45]} Bf5 $11 {[%emt 0:03:07]} 12. Bd2 {[%emt 0:13:52]} Nbd7 {[%emt 0:04:26]} 13. Na2 {[%emt 0:01:49]} Qb6 {[%emt 0:10:43]} 14. Be3 {[%emt 0:04:53]} Rxe3 {[%emt 0:08:23]} 15. fxe3 {[%emt 0:01:30]} Qxe3+ {[%emt 0:00:02]} 16. Kh1 {[%emt 0:00:01]} Ng4 {[%emt 0:00:58]} 17. h3 {[%emt 0:13:45]} Nf2+ {[%emt 0:21:27]} 18. Kh2 {[%emt 0:00:07]} Nxh3 {[%emt 0:01:03]} 19. Rf1 {[%emt 0:31:46]} Bxg3+ {[%emt 0:01:08]} 20. Kh1 {[%emt 0:00:40]} Nf2+ {[%emt 0:01:06]} 21. Rxf2 {[%emt 0:00:15]} Bxf2 {[%emt 0:01:09]} 22. Rf1 {[%emt 0:00:59]} d4 {[%emt 0:04:34]} 23. Nc1 {[%emt 0:02:45]} Be6 {[%emt 0:03:42]} 24. Nb3 {[%emt 0:04:52]} c5 {[%emt 0:01:30]} 25. Nc1 {[%emt 0:00:30]} g5 {[%emt 0:02:04]} 26. Qd2 {[%emt 0:03:15]} Qxd2 {[%emt 0:04:47]} 27. Nxd2 {[%emt 0:00:04]} Be3 {[%emt 0:00:07]} 28. Ne4 {[%emt 0:00:47]} Rb8 {[%emt 0:00:56]} 29. Ng3 {[%emt 0:01:48]} b6 {[%emt 0:00:52]} 30. Be4 {[%emt 0:00:52]} Bf4 {[%emt 0:02:04]} 31. Nh5 {[%emt 0:00:48]} Bxc1 {[%emt 0:00:44]} 32. Rxc1 {[%emt 0:00:06]} f5 {[%emt 0:00:10]} 33. Bc6 {[%emt 0:00:16]} Kf7 {[%emt 0:00:44]} 34. Ng3 {[%emt 0:00:10]} Ne5 {[%emt 0:00:59]} 35. Bb5 {[%emt 0:00:35]} f4 {[%emt 0:00:57]} 36. Nf1 {[%emt 0:00:33]} Bd7 {[%emt 0:00:30]} 37. Bxd7 {[%emt 0:00:20]} Nxd7 {[%emt 0:00:01]} 38. Nd2 {[%emt 0:00:01]} Ke6 {[%emt 0:00:51]} 39. Kg2 {[%emt 0:00:12]} h5 {[%emt 0:02:03]} 40. Ne4 {[%emt 0:00:50]} g4 {[%emt 0:00:28]} 41. Rh1 {[%emt 0:00:51]} Rh8 {[%emt 0:00:21]} 42. Rh4 {[%emt 0:00:27]} Ne5 {[%emt 0:01:32]} 43. Rh1 {[%emt 0:01:33]} h4 {[%emt 0:00:35]} 44. Rb1 {[%emt 0:01:09]} h3+ {[%emt 0:00:19]} 45. Kh1 {[%emt 0:00:52]} g3 {[%emt 0:00:50]} 46. Ng5+ {[%emt 0:00:20]} Kf5 {[%emt 0:00:17]} 47. Nf3 {[%emt 0:00:04]} Nxf3 {[%emt 0:00:24]} 48. exf3 {[%emt 0:00:01]} Re8 {[%emt 0:00:09]} 49. Kg1 {[%emt 0:00:33]} Re3 {[%emt 0:00:23]} 50. b4 {[%emt 0:00:34]} axb4 {[%emt 0:00:11]} 51. axb4 {[%emt 0:00:04]} cxb4 {[%emt 0:01:52]} 52. Rf1 {[%emt 0:01:22]} h2+ {[%emt 0:00:37]} 53. Kh1 {[%emt 0:00:31]} Rxd3 {[%emt 0:00:24]} 54. Re1 {[%emt 0:01:08]} b3 {[%emt 0:00:25]} 55. Kg2 {[%emt 0:00:27]} Rd2+ {[%emt 0:00:07]} 56. Kh1 {[%emt 0:00:07]} Rd3 {[%emt 0:00:25]} 57. Kg2 {[%emt 0:00:06]} b2 {[%emt 0:00:39]} 58. Rb1 {[%emt 0:00:52]} Rb3 {[%emt 0:00:20]} 59. Kh1 {[%emt 0:00:24]} d3 {[%emt 0:00:32]} 60. Rxb2 {[%emt 0:00:26]} g2+ {[%emt 0:00:18]} 61. Rxg2 {[%emt 0:00:05]} Ke5 {[%emt 0:01:10]} 62. Rg8 {[%emt 0:01:31]} d2 {[%emt 0:00:35]} 63. Re8+ {[%emt 0:00:15]} Kf6 {[%emt 0:00:15]} 64. Rd8 {[%emt 0:00:47]} Rb1+ {[%emt 0:00:05]} 0-1

[Event "European Union U14-ch 2024"]
[Site "Roznov pod Radhostem"]
[Date "2024.08.11"]
[Round "7.5"]
[White "Madel, Luca"]
[Black "Pritulina, Nadezhda"]
[Result "1/2-1/2"]
[ECO "A40"]
[WhiteElo "1628"]
[BlackElo "1589"]
[Annotator "NA RC"]
[PlyCount "76"]
[EventDate "2024.08.02"]
[EventType "swiss"]
[EventCountry "CZE"]
[SourceTitle "playchess.com"]
[Source "ChessBase"]
[SourceQuality "1"]
[TimeControl "5400+30"]

1. d4 {[%emt 0:00:03]} e6 {[%emt 0:00:05]} 2. Nf3 {[%emt 0:00:14]} c5 {[%emt 0:00:24]} 3. e3 {[%emt 0:00:20]} Nf6 {[%emt 0:02:13]} 4. b3 {[%emt 0:00:47]} d5 {[%emt 0:02:23]} 5. Bb2 {[%emt 0:00:14]} Nc6 {[%emt 0:02:15]} 6. a3 {[%emt 0:00:27]} a6 {[%emt 0:00:26]} 7. Bd3 {[%emt 0:00:42]} Bd6 {[%emt 0:05:45]} 8. Ne5 {[%emt 0:02:21]} Qc7 {[%emt 0:00:47]} 9. f4 {[%emt 0:00:16]} cxd4 {[%emt 0:06:45]} 10. exd4 {[%emt 0:00:34]} Ne4 {[%emt 0:00:24]} 11. Bxe4 {[%emt 0:01:14]} dxe4 {[%emt 0:00:15]} 12. Qe2 {[%emt 0:00:20]} Bxe5 {[%emt 0:14:23]} 13. fxe5 {[%emt 0:04:29]} b5 {[%emt 0:01:35]} 14. Qxe4 {[%emt 0:00:28]} Bb7 {[%emt 0:00:45]} 15. Qe2 {[%emt 0:01:10]} Rd8 {[%emt 0:02:13]} 16. c3 {[%emt 0:00:38]} Na5 {[%emt 0:00:14]} 17. Nd2 {[%emt 0:00:38]} Bd5 {[%emt 0:00:27]} 18. b4 {[%emt 0:00:29]} Nc4 {[%emt 0:00:44]} 19. Nxc4 {[%emt 0:00:43]} Bxc4 {[%emt 0:00:12]} 20. Qg4 {[%emt 0:00:39]} O-O {[%emt 0:01:10]} 21. Bc1 {[%emt 0:01:01]} Bd3 {[%emt 0:02:37]} 22. Bd2 {[%emt 0:01:09]} Qc6 {[%emt 0:00:31]} 23. Qf3 {[%emt 0:02:51]} Qe4+ {[%emt 0:04:17]} 24. Qxe4 {[%emt 0:00:21]} Bxe4 {[%emt 0:00:05]} 25. O-O {[%emt 0:00:16]} Bd5 {[%emt 0:04:21]} 26. a4 {[%emt 0:04:33]} Ra8 {[%emt 0:00:05]} 27. Rf4 {[%emt 0:01:12]} Bb3 {[%emt 0:00:41]} 28. a5 {[%emt 0:00:19]} Ra7 {[%emt 0:00:36]} 29. Rg4 {[%emt 0:00:19]} g6 {[%emt 0:01:09]} 30. Bh6 {[%emt 0:01:28]} Rc8 {[%emt 0:00:16]} 31. Rg3 {[%emt 0:00:36]} Rac7 {[%emt 0:00:15]} 32. Rc1 {[%emt 0:00:20]} Bd5 {[%emt 0:00:41]} 33. h4 {[%emt 0:00:25]} Rd7 {[%emt 0:01:22]} 34. h5 {[%emt 0:00:22]} Rcc7 {[%emt 0:00:34]} 35. hxg6 {[%emt 0:00:32]} fxg6 {[%emt 0:00:05]} 36. Bg5 {[%emt 0:00:34]} Rf7 {[%emt 0:00:15]} 37. Bf6 {[%emt 0:00:24]} Rc4 {[%emt 0:01:46]} 38. Kf2 {[%emt 0:00:30]} Rfc7 {[%emt 0:00:29]} 1/2-1/2

[Event "European Union U14-ch 2024"]
[Site "Roznov pod Radhostem"]
[Date "2024.08.11"]
[Round "7.6"]
[White "Golub, Mia"]
[Black "Duchatel, Maxime"]
[Result "0-1"]
[ECO "D31"]
[WhiteElo "1418"]
[BlackElo "1682"]
[Annotator "NA RC"]
[PlyCount "80"]
[EventDate "2024.08.02"]
[EventType "swiss"]
[EventCountry "CZE"]
[SourceTitle "playchess.com"]
[Source "ChessBase"]
[SourceQuality "1"]
[TimeControl "5400+30"]

1. d4 {[%emt 0:00:02]} d5 {[%emt 0:00:09]} 2. c4 {[%emt 0:00:05]} e6 {[%emt 0:00:05]} 3. Nf3 {[%emt 0:00:06]} c6 {[%emt 0:00:04]} 4. Nc3 {[%emt 0:01:37]} dxc4 {[%emt 0:00:06]} 5. e4 {[%emt 0:02:05]} b5 {[%emt 0:00:05]} 6. a4 {[%emt 0:02:20]} Bb4 {[%emt 0:00:07]} 7. Bd2 {[%emt 0:03:13]} a5 {[%emt 0:00:20]} 8. axb5 {[%emt 0:01:57]} Bxc3 {[%emt 0:00:13]} 9. Bxc3 {[%emt 0:01:50]} cxb5 {[%emt 0:00:06]} 10. Be2 {[%emt 0:06:08]} Nf6 {[%emt 0:02:15]} 11. Qc2 {[%emt 0:03:23]} O-O {[%emt 0:03:31]} 12. O-O {[%emt 0:04:18]} Bb7 {[%emt 0:00:30]} 13. e5 {[%emt 0:06:30]} Nd5 {[%emt 0:00:08]} 14. Bd2 {[%emt 0:05:47]} Nd7 {[%emt 0:03:42]} 15. Rfc1 {[%emt 0:03:56]} N7b6 {[%emt 0:04:25]} 16. Bxa5 {[%emt 0:03:28]} Qe7 {[%emt 0:05:11]} 17. Bd2 {[%emt 0:09:07]} Nb4 {[%emt 0:03:04]} 18. Bxb4 {[%emt 0:02:29]} Qxb4 {[%emt 0:00:13]} 19. Qc3 {[%emt 0:05:04]} Qxc3 {[%emt 0:00:36]} 20. bxc3 {[%emt 0:01:30]} Nd5 {[%emt 0:00:25]} 21. Rab1 {[%emt 0:02:37]} Bc6 {[%emt 0:02:27]} 22. g3 {[%emt 0:06:34]} Ra3 {[%emt 0:01:49]} 23. Rb2 {[%emt 0:05:52]} Rxc3 {[%emt 0:01:14]} 24. Rcb1 {[%emt 0:01:17]} Ra3 {[%emt 0:02:07]} 25. Kg2 {[%emt 0:03:25]} Nc3 {[%emt 0:00:36]} 26. Re1 {[%emt 0:02:15]} Nxe2 {[%emt 0:00:03]} 27. Rexe2 {[%emt 0:00:42]} Bxf3+ {[%emt 0:00:06]} 28. Kf1 {[%emt 0:00:48]} Bxe2+ {[%emt 0:00:12]} 29. Kxe2 {[%emt 0:00:28]} Rb3 {[%emt 0:00:16]} 30. Rc2 {[%emt 0:00:47]} Rc8 {[%emt 0:00:06]} 31. Kd1 {[%emt 0:03:01]} g6 {[%emt 0:00:10]} 32. f4 {[%emt 0:02:07]} Rd3+ {[%emt 0:00:08]} 33. Ke2 {[%emt 0:00:20]} Rxd4 {[%emt 0:00:02]} 34. Ke3 {[%emt 0:02:12]} Rcd8 {[%emt 0:00:11]} 35. Rc1 {[%emt 0:03:12]} Rd3+ {[%emt 0:00:13]} 36. Ke2 {[%emt 0:00:16]} c3 {[%emt 0:00:14]} 37. h3 {[%emt 0:02:34]} Rd2+ {[%emt 0:00:08]} 38. Ke3 {[%emt 0:00:44]} c2 {[%emt 0:00:06]} 39. Ke4 {[%emt 0:00:54]} b4 {[%emt 0:00:11]} 40. Ke3 {[%emt 0:00:12]} b3 {[%emt 0:00:04]} 0-1

[Event "European Union U14-ch 2024"]
[Site "Roznov pod Radhostem"]
[Date "2024.08.11"]
[Round "7.7"]
[White "Myronova, Sofia"]
[Black "Barteckova, Nikol"]
[Result "0-1"]
[ECO "B13"]
[WhiteElo "1463"]
[BlackElo "1669"]
[Annotator "NA RC"]
[PlyCount "138"]
[EventDate "2024.08.02"]
[EventType "swiss"]
[EventCountry "CZE"]
[SourceTitle "playchess.com"]
[Source "ChessBase"]
[SourceQuality "1"]
[TimeControl "5400+30"]

1. e4 {[%emt 0:00:06]} c6 {[%emt 0:00:08]} 2. d4 {[%emt 0:01:01]} d5 {[%emt 0:00:08]} 3. exd5 {[%emt 0:00:17]} cxd5 {[%emt 0:00:12]} 4. Nf3 {[%emt 0:00:49]} Nc6 {[%emt 0:00:50]} 5. Be3 {[%emt 0:03:27]} Nf6 {[%emt 0:01:58]} 6. Bb5 {[%emt 0:02:10]} a6 {[%emt 0:05:44]} 7. Bd3 {[%emt 0:02:10]} g6 {[%emt 0:01:26]} 8. O-O {[%emt 0:02:04]} Bf5 {[%emt 0:01:23]} 9. Nc3 {[%emt 0:01:39]} Nb4 {[%emt 0:04:55]} 10. Ne5 {[%emt 0:02:51]} Nxd3 {[%emt 0:12:39]} 11. Nxd3 {[%emt 0:01:39]} Bg7 {[%emt 0:04:48]} 12. Ne5 {[%emt 0:07:24]} O-O {[%emt 0:03:53]} 13. h3 {[%emt 0:03:48]} Ne4 {[%emt 0:04:21]} 14. Nxe4 {[%emt 0:08:50]} Bxe4 {[%emt 0:01:22]} 15. f3 {[%emt 0:01:37]} Bf5 {[%emt 0:00:21]} 16. g4 {[%emt 0:00:47]} Bc8 {[%emt 0:01:38]} 17. f4 {[%emt 0:01:38]} e6 {[%emt 0:09:46]} 18. Nf3 {[%emt 0:03:34]} b6 {[%emt 0:02:29]} 19. c3 {[%emt 0:01:06]} Qc7 {[%emt 0:00:57]} 20. Kg2 {[%emt 0:01:36]} Rb8 {[%emt 0:02:16]} 21. a3 {[%emt 0:00:58]} b5 {[%emt 0:00:30]} 22. Rc1 {[%emt 0:07:27]} Qb6 {[%emt 0:04:38]} 23. b4 {[%emt 0:09:02]} f6 {[%emt 0:02:39]} 24. Qe2 {[%emt 0:03:28]} Bd7 {[%emt 0:02:20]} 25. Qd2 {[%emt 0:07:09]} Rfc8 {[%emt 0:01:43]} 26. Rc2 {[%emt 0:02:20]} Rc4 {[%emt 0:02:13]} 27. Qd3 {[%emt 0:01:39]} Ra8 {[%emt 0:01:54]} 28. Nd2 {[%emt 0:01:12]} Rcc8 {[%emt 0:00:30]} 29. Nb3 {[%emt 0:00:39]} Rc7 {[%emt 0:01:55]} 30. Re1 {[%emt 0:02:16]} Kf7 {[%emt 0:02:29]} 31. Bf2 {[%emt 0:04:16]} Re8 {[%emt 0:05:53]} 32. Rce2 {[%emt 0:00:44]} Qd6 {[%emt 0:01:12]} 33. Bg3 {[%emt 0:01:27]} Qc6 {[%emt 0:00:38]} 34. Rc1 {[%emt 0:01:03]} Bc8 {[%emt 0:01:49]} 35. Na5 {[%emt 0:04:11]} Qb6 {[%emt 0:01:59]} 36. f5 {[%emt 0:02:47]} Rce7 {[%emt 0:00:45]} 37. fxg6+ {[%emt 0:01:41]} hxg6 {[%emt 0:00:27]} 38. Bf2 {[%emt 0:01:10]} Bh6 {[%emt 0:02:33]} 39. Rf1 {[%emt 0:00:29]} Kg7 {[%emt 0:00:47]} 40. Bh4 {[%emt 0:02:36]} g5 {[%emt 0:00:35]} 41. Bg3 {[%emt 0:00:12]} Rh8 {[%emt 0:01:46]} 42. Ref2 {[%emt 0:00:35]} Rf8 {[%emt 0:01:40]} 43. Be5 {[%emt 0:01:13]} Ref7 {[%emt 0:00:33]} 44. Bg3 {[%emt 0:00:57]} f5 {[%emt 0:01:44]} 45. Be5+ {[%emt 0:01:12]} Kg8 {[%emt 0:00:18]} 46. gxf5 {[%emt 0:01:11]} exf5 {[%emt 0:00:11]} 47. Nb3 {[%emt 0:00:07]} Qg6 {[%emt 0:01:06]} 48. Kh2 {[%emt 0:00:15]} Qh5 {[%emt 0:00:44]} 49. Rg2 {[%emt 0:00:57]} f4 {[%emt 0:00:51]} 50. Bd6 {[%emt 0:01:56]} Re8 {[%emt 0:00:18]} 51. Be5 {[%emt 0:00:51]} Bf5 {[%emt 0:01:05]} 52. Qd1 {[%emt 0:00:36]} Qxh3+ {[%emt 0:00:25]} 53. Kg1 {[%emt 0:00:41]} Qe3+ {[%emt 0:01:04]} 54. Rff2 {[%emt 0:00:46]} g4 {[%emt 0:01:41]} 55. Rxg4+ {[%emt 0:00:49]} Bxg4 {[%emt 0:00:05]} 56. Qxg4+ {[%emt 0:00:04]} Bg7 {[%emt 0:00:20]} 57. Nc5 {[%emt 0:00:28]} Qg3+ {[%emt 0:01:40]} 58. Qxg3 {[%emt 0:00:11]} fxg3 {[%emt 0:00:06]} 59. Rxf7 {[%emt 0:00:12]} Kxf7 {[%emt 0:00:14]} 60. Bxg7 {[%emt 0:00:09]} Kxg7 {[%emt 0:00:14]} 61. Kg2 {[%emt 0:00:11]} Re3 {[%emt 0:00:46]} 62. Nxa6 {[%emt 0:00:04]} Rxc3 {[%emt 0:00:23]} 63. Nc5 {[%emt 0:00:33]} Rxa3 {[%emt 0:00:23]} 64. Ne6+ {[%emt 0:00:16]} Kf6 {[%emt 0:00:33]} 65. Nc7 {[%emt 0:00:01]} Rd3 {[%emt 0:02:53]} 66. Nxd5+ Kf5 {[%emt 0:00:39]} 67. Nc7 {[%emt 0:01:34]} Rxd4 {[%emt 0:00:20]} 68. Nxb5 {[%emt 0:00:25]} Rxb4 {[%emt 0:00:14]} 69. Nd6+ {[%emt 0:00:11]} Kf4 {[%emt 0:00:19]} 0-1

[Event "European Union U14-ch 2024"]
[Site "Roznov pod Radhostem"]
[Date "2024.08.12"]
[Round "8.1"]
[White "Kincses, Emma"]
[Black "Constantinoiu, Alexandru Ioan"]
[Result "0-1"]
[ECO "A06"]
[WhiteElo "1618"]
[BlackElo "1904"]
[Annotator "NA RC"]
[PlyCount "74"]
[EventDate "2024.08.02"]
[EventType "swiss"]
[EventCountry "CZE"]
[SourceTitle "playchess.com"]
[Source "ChessBase"]
[SourceQuality "1"]
[TimeControl "5400+30"]

1. Nf3 {[%emt 0:00:03]} d5 {[%emt 0:00:15]} 2. g3 {[%emt 0:00:10]} Nf6 {[%emt 0:00:24]} 3. Bg2 {[%emt 0:00:14]} e6 {[%emt 0:00:30]} 4. O-O {[%emt 0:01:19]} Nbd7 {[%emt 0:00:15]} 5. d4 {[%emt 0:00:16]} b5 {[%emt 0:00:38]} 6. b3 {[%emt 0:01:13]} Bb7 {[%emt 0:03:33]} 7. Bb2 {[%emt 0:01:23]} c5 {[%emt 0:01:29]} 8. c3 {[%emt 0:03:37]} Be7 {[%emt 0:15:26]} 9. Nbd2 {[%emt 0:05:53]} Rc8 {[%emt 0:05:46]} 10. Rc1 {[%emt 0:06:22]} Qb6 {[%emt 0:06:11]} 11. Re1 {[%emt 0:05:50]} O-O {[%emt 0:02:16]} 12. e3 {[%emt 0:15:50]} Bd6 {[%emt 0:06:14]} 13. Rc2 {[%emt 0:09:39]} c4 {[%emt 0:16:28]} 14. Qc1 {[%emt 0:08:26]} Qa6 {[%emt 0:03:41]} 15. b4 {[%emt 0:06:22]} Ne4 {[%emt 0:05:26]} 16. a3 {[%emt 0:08:35]} f5 {[%emt 0:01:17]} 17. Qd1 {[%emt 0:02:06]} Qb6 {[%emt 0:01:50]} 18. Nxe4 {[%emt 0:06:17]} dxe4 {[%emt 0:00:51]} 19. Ng5 {[%emt 0:02:40]} Rf6 {[%emt 0:01:40]} 20. Rd2 {[%emt 0:01:33]} h6 {[%emt 0:03:11]} 21. Nh3 {[%emt 0:00:10]} Qd8 {[%emt 0:05:02]} 22. Qc2 {[%emt 0:01:38]} Nb6 {[%emt 0:00:47]} 23. Rdd1 {[%emt 0:00:46]} g5 {[%emt 0:00:38]} 24. Kh1 {[%emt 0:00:39]} Qe8 {[%emt 0:01:43]} 25. Qe2 {[%emt 0:02:25]} Rc7 {[%emt 0:00:21]} 26. g4 {[%emt 0:02:21]} Rg7 {[%emt 0:01:28]} 27. Rf1 {[%emt 0:01:19]} Qb8 {[%emt 0:04:54]} 28. f3 {[%emt 0:01:36]} exf3 {[%emt 0:00:45]} 29. Bxf3 {[%emt 0:00:15]} fxg4 {[%emt 0:00:32]} 30. Bxb7 {[%emt 0:01:19]} Qxb7+ {[%emt 0:00:24]} 31. e4 {[%emt 0:00:05]} Rxf1+ {[%emt 0:00:31]} 32. Rxf1 {[%emt 0:00:05]} gxh3 {[%emt 0:00:23]} 33. Bc1 {[%emt 0:00:23]} Rf7 {[%emt 0:00:41]} 34. Rg1 {[%emt 0:01:03]} Bf4 {[%emt 0:00:41]} 35. Bxf4 {[%emt 0:01:29]} Rxf4 {[%emt 0:00:07]} 36. d5 {[%emt 0:00:06]} exd5 {[%emt 0:00:38]} 37. Qe3 {[%emt 0:00:06]} dxe4 {[%emt 0:01:11]} 0-1

[Event "European Union U14-ch 2024"]
[Site "Roznov pod Radhostem"]
[Date "2024.08.12"]
[Round "8.2"]
[White "Bartova, Hana"]
[Black "Bocquenet-Drouode, Hugo"]
[Result "0-1"]
[ECO "B33"]
[WhiteElo "1796"]
[BlackElo "2025"]
[Annotator "NA RC"]
[PlyCount "124"]
[EventDate "2024.08.02"]
[EventType "swiss"]
[EventCountry "CZE"]
[SourceTitle "playchess.com"]
[Source "ChessBase"]
[SourceQuality "1"]
[TimeControl "5400+30"]

1. e4 {[%emt 0:00:02]} c5 {[%emt 0:00:04]} 2. Nf3 {[%emt 0:00:04]} Nc6 {[%emt 0:00:04]} 3. d4 {[%emt 0:00:12]} cxd4 {[%emt 0:00:05]} 4. Nxd4 {[%emt 0:00:05]} Nf6 {[%emt 0:00:05]} 5. f3 {[%emt 0:00:18]} e5 {[%emt 0:11:40]} 6. Nb5 {[%emt 0:08:01]} d6 {[%emt 0:06:50]} 7. c4 {[%emt 0:09:42]} Be6 {[%emt 0:07:20]} 8. N1c3 {[%emt 0:07:20]} a6 {[%emt 0:02:51]} 9. Na3 {[%emt 0:00:13]} Rc8 $11 {[%emt 0:00:16]} 10. Be3 {[%emt 0:05:45]} Be7 {[%emt 0:05:30]} 11. Qd2 {[%emt 0:03:13]} O-O {[%emt 0:08:38]} 12. Nc2 {[%emt 0:06:24]} Qa5 {[%emt 0:02:23]} 13. Nd5 {[%emt 0:10:13]} Qxd2+ {[%emt 0:01:01]} 14. Kxd2 {[%emt 0:02:51]} Bxd5 {[%emt 0:00:07]} 15. cxd5 {[%emt 0:00:42]} Nb8 {[%emt 0:00:13]} 16. Be2 {[%emt 0:01:17]} Nbd7 {[%emt 0:04:21]} 17. Rac1 {[%emt 0:07:31]} Bd8 {[%emt 0:05:56]} 18. Na3 {[%emt 0:08:13]} Ba5+ {[%emt 0:00:25]} 19. Kd1 {[%emt 0:02:12]} Bb4 {[%emt 0:08:14]} 20. Nc4 {[%emt 0:04:24]} b5 {[%emt 0:15:29]} 21. a3 {[%emt 0:05:47]} Bc5 {[%emt 0:00:28]} 22. Bxc5 {[%emt 0:00:19]} dxc5 {[%emt 0:00:32]} 23. Nd6 {[%emt 0:03:07]} Rb8 {[%emt 0:03:48]} 24. Nf5 {[%emt 0:02:00]} g6 {[%emt 0:00:56]} 25. Ne3 {[%emt 0:01:51]} Ne8 {[%emt 0:01:27]} 26. Rc2 {[%emt 0:01:02]} Nd6 {[%emt 0:01:11]} 27. b3 {[%emt 0:01:09]} Kg7 {[%emt 0:02:12]} 28. Rf1 {[%emt 0:02:12]} Rbc8 {[%emt 0:01:28]} 29. Kd2 {[%emt 0:00:41]} f5 {[%emt 0:02:08]} 30. Bd3 {[%emt 0:00:36]} f4 {[%emt 0:01:43]} 31. Ng4 {[%emt 0:01:04]} h5 {[%emt 0:00:10]} 32. Nf2 {[%emt 0:00:12]} c4 {[%emt 0:03:37]} 33. bxc4 {[%emt 0:01:30]} bxc4 {[%emt 0:00:05]} 34. Be2 {[%emt 0:00:20]} Rc5 {[%emt 0:01:48]} 35. Rfc1 {[%emt 0:00:44]} Rfc8 {[%emt 0:00:27]} 36. Nd1 {[%emt 0:01:59]} Nb6 {[%emt 0:01:32]} 37. Nc3 {[%emt 0:00:11]} Nb5 {[%emt 0:01:10]} 38. Nxb5 {[%emt 0:01:15]} axb5 {[%emt 0:00:06]} 39. Kc3 {[%emt 0:01:29]} Kf6 {[%emt 0:00:41]} 40. Rb1 {[%emt 0:01:07]} Ke7 {[%emt 0:00:35]} 41. Bd1 {[%emt 0:00:42]} Ra8 {[%emt 0:01:00]} 42. Ra2 {[%emt 0:00:36]} Kd6 {[%emt 0:00:39]} 43. Rb4 {[%emt 0:01:28]} Kc7 {[%emt 0:02:11]} 44. Bc2 {[%emt 0:01:02]} Kd6 {[%emt 0:00:30]} 45. Bd1 {[%emt 0:00:05]} Ra5 {[%emt 0:00:17]} 46. Bc2 {[%emt 0:01:16]} g5 {[%emt 0:00:33]} 47. h3 {[%emt 0:00:23]} Rc7 {[%emt 0:00:20]} 48. Bd1 {[%emt 0:00:48]} Rca7 {[%emt 0:00:23]} 49. Kb2 {[%emt 0:00:24]} Nd7 {[%emt 0:00:21]} 50. a4 {[%emt 0:00:24]} Kc5 {[%emt 0:00:43]} 51. Rxb5+ {[%emt 0:00:26]} Rxb5+ {[%emt 0:00:03]} 52. axb5 Rxa2+ {[%emt 0:00:04]} 53. Kxa2 {[%emt 0:00:09]} Kxb5 {[%emt 0:00:12]} 54. Ka3 {[%emt 0:00:38]} Nb6 {[%emt 0:00:53]} 55. Bc2 {[%emt 0:00:35]} Kc5 {[%emt 0:00:20]} 56. Ba4 {[%emt 0:00:49]} Nc8 {[%emt 0:00:09]} 57. Bd7 {[%emt 0:00:30]} Nd6 {[%emt 0:00:12]} 58. Kb2 {[%emt 0:00:32]} Kd4 {[%emt 0:00:08]} 59. Kc2 {[%emt 0:00:15]} Ke3 {[%emt 0:00:12]} 60. Bf5 {[%emt 0:00:57]} Kf2 {[%emt 0:00:25]} 61. Bg6 {[%emt 0:00:15]} g4 {[%emt 0:01:49]} 62. Bxh5 {[%emt 0:00:32]} g3 {[%emt 0:00:06]} 0-1